bitfinex/quotes_ETHUSD_20251206
["timestamp","ask_amount","ask_price","bid_price","bid_amount"]
[1765028562105,4.44282781,3041.0,3040.3,0.4969]
[1765028562329,4.44282781,3041.0,3040.8,0.5]
[1765028562939,4.90222781,3041.0,3040.6,0.4969]
[1765028563236,4.90222781,3041.0,3040.4,0.4969]
[1765028564452,0.519,3041.1,3040.5,3.28893274]
[1765028565047,1.61381067,3041.2,3040.6,0.4969]
[1765028565209,1.96157732,3041.2,3040.6,0.4969]
[1765028565552,0.4594,3041.1,3040.6,0.4969]
[1765028566122,0.4594,3041.1,3040.5,3.28893274]
[1765028568548,0.4594,3041.1,3040.4,3.28904091]
[1765028568713,0.4594,3041.1,3040.5,0.4969]
[1765028569036,3.74768618,3041.1,3040.5,0.4969]
[1765028569335,4.60148019,3041.1,3040.5,0.4969]
[1765028569739,1.31319401,3041.1,3040.5,0.4969]
[1765028569916,0.4594,3041.1,3040.5,0.4969]
[1765028570240,4.90192111,3041.3,3040.5,0.4969]
[1765028570924,4.90192111,3041.3,3040.6,3.28882457]
[1765028571521,4.90192111,3041.3,3040.7,0.4945]
[1765028572032,0.54881301,3041.5,3041.2,0.4664]
[1765028572233,0.4598,3041.5,3041.2,0.4664]
[1765028572933,2.13521067,3041.7,3041.2,0.4664]
[1765028573232,0.4598,3041.6,3041.2,0.4664]
[1765028582318,0.4887,3041.3,3041.0,3.28835392]
[1765028582518,0.4887,3041.3,3040.9,3.47607225]
[1765028582760,0.9485,3041.3,3040.9,3.47607225]
[1765028583160,0.9485,3041.3,3040.9,3.28847225]
[1765028583448,0.4598,3041.2,3040.9,3.28847225]
[1765028584252,0.4598,3041.2,3040.8,3.28858011]
[1765028584756,0.6807,3040.9,3040.3,7.12912309]
[1765028584918,0.2378,3040.8,3040.3,3.80812309]
[1765028585120,0.6976,3040.8,3040.3,3.80812309]
[1765028585557,0.6976,3040.8,3040.3,4.30262309]
[1765028586263,0.2378,3040.8,3040.3,4.30262309]
[1765028586557,0.4598,3040.7,3040.3,3.28912309]
[1765028587265,0.4598,3040.7,3040.2,3.80821445]
[1765028587764,0.4598,3040.7,3040.1,0.0931]
[1765028588127,0.4598,3040.7,3040.2,3.28925103]
[1765028589833,0.4975,3040.3,3040.0,3.28944637]
[1765028590259,0.2291,3040.1,3039.7,3.80872668]
[1765028590570,0.2291,3040.1,3039.7,4.27842668]
[1765028590725,0.2291,3040.1,3039.9,3.28954131]
[1765028593123,4.4431457,3040.7,3040.0,0.464]
[1765028593124,3.2888407,3040.6,3040.0,0.464]
[1765028593322,0.487,3040.4,3040.0,0.464]
[1765028593728,0.487,3040.4,3039.8,3.75939011]
[1765028594753,0.487,3040.4,3039.8,3.28969011]
[1765028595126,0.4975,3039.9,3039.3,0.001]
[1765028595357,1.88000478,3040.3,3039.7,3.28976035]
[1765028595665,2.36700478,3040.3,3039.8,0.464]
[1765028596071,0.487,3040.2,3039.8,0.464]
[1765028598063,0.4975,3039.9,3039.6,3.28987455]
[1765028600548,0.4975,3039.9,3039.5,3.28994992]
[1765028600747,0.4975,3039.9,3039.5,4.30211364]
[1765028601772,0.9845,3039.9,3039.5,4.30211364]
[1765028601943,0.4975,3039.9,3039.5,4.30211364]
[1765028602144,0.487,3039.8,3039.5,3.28994992]
[1765028602642,3.38929966,3040.2,3039.5,3.28994992]
[1765028602843,0.487,3040.1,3039.5,3.28994992]
[1765028603236,1.64141067,3040.1,3039.4,0.001]
[1765028603453,0.38762997,3040.0,3039.4,0.001]
[1765028603789,1.00633997,3040.0,3039.4,0.001]
[1765028604487,0.487,3039.9,3039.4,0.001]
[1765028604988,3.77660214,3039.9,3039.4,0.001]
[1765028605484,0.487,3039.9,3039.4,0.001]
[1765028605662,2.88600478,3040.3,3039.8,0.464]
[1765028605862,5.44957921,3040.3,3039.9,0.464]
[1765028606094,0.487,3040.2,3039.5,0.4697]
[1765028606588,0.487,3040.2,3039.6,3.28990656]
[1765028606789,3.77628374,3040.2,3039.6,3.28990656]
[1765028606977,0.4975,3039.7,3039.4,3.29108018]
[1765028607177,0.4975,3039.7,3039.4,0.001]
[1765028607387,0.4975,3039.7,3039.4,3.2910731]
[1765028608166,0.4975,3039.7,3039.5,3.29000927]
[1765028608679,0.4975,3039.7,3039.4,3.29112305]
[1765028610106,0.487,3039.9,3039.4,0.001]
[1765028610107,0.2022,3039.5,3039.4,0.001]
[1765028610279,0.38656107,3039.5,3039.4,0.001]
[1765028610672,1.15441067,3039.6,3039.4,0.465]
[1765028611015,1.28612761,3039.6,3039.4,0.465]
[1765028611219,5.6564119,3040.1,3039.5,0.464]
[1765028611521,1.15441067,3039.9,3039.5,0.464]
[1765028612521,1.64141067,3039.9,3039.5,0.464]
[1765028612727,0.487,3039.8,3039.5,0.464]
[1765028613378,1.15441067,3039.9,3039.5,0.464]
[1765028613580,0.98777301,3040.1,3039.8,0.464]
[1765028613779,4.93062436,3040.3,3039.8,0.464]
[1765028613993,1.05262185,3040.2,3039.8,0.464]
[1765028614509,0.56562185,3040.2,3039.8,0.464]
[1765028614880,1.05262185,3040.2,3039.8,0.464]
[1765028615188,5.43133883,3040.3,3039.8,0.9337]
[1765028615589,5.43133883,3040.3,3039.9,0.4697]
[1765028616681,5.91833883,3040.3,3039.7,9.60428331]
[1765028617703,5.91833883,3040.3,3039.7,9.13458331]
[1765028617912,5.91833883,3040.3,3039.8,0.4697]
[1765028620118,0.4941,3040.2,3039.8,0.4697]
[1765028620992,0.4941,3040.2,3039.7,5.84481912]
[1765028621199,1.48810863,3040.2,3039.7,0.4705]
[1765028622236,4.77737731,3040.2,3039.7,0.4705]
[1765028622928,0.4941,3040.1,3039.6,3.28987556]
[1765028623312,0.4941,3040.1,3039.7,0.4705]
[1765028626146,5.92541221,3040.3,3039.7,0.4705]
[1765028626439,0.4941,3040.2,3039.7,0.4705]
[1765028626828,0.4941,3040.2,3039.7,3.76028727]
[1765028627028,0.4941,3040.2,3039.7,0.4705]
[1765028630109,0.4941,3040.2,3039.6,9.13465038]
[1765028630310,0.4941,3040.2,3039.7,3.28979658]
[1765028631634,0.4941,3040.2,3039.7,3.77489658]
[1765028632315,0.4941,3040.2,3039.7,0.4851]
[1765028634348,0.4941,3040.2,3039.7,3.77483735]
[1765028635861,4.2768652,3040.3,3039.7,3.77483735]
[1765028636069,5.22145629,3040.3,3039.7,3.28973735]
[1765028636239,5.68415629,3040.3,3039.7,3.77483735]
[1765028639852,5.22145629,3040.3,3039.7,0.4851]
[1765028640164,0.4627,3040.2,3039.7,3.77488436]
[1765028640625,0.4627,3040.2,3039.6,9.13468694]
[1765028640829,1.72010334,3040.1,3039.6,9.13468694]
[1765028641268,0.4627,3040.0,3039.6,9.13468694]
[1765028641771,0.4627,3040.0,3039.6,5.84481912]
[1765028642064,0.4627,3040.0,3039.6,9.13471549]
[1765028642281,3.2901823,3041.2,3039.9,6.32611912]
[1765028642431,0.4627,3041.1,3040.6,5.84481912]
[1765028642629,1.18829411,3041.1,3040.4,5.84481912]
[1765028642928,1.18829411,3041.1,3040.2,6.42301912]
[1765028642929,0.4627,3041.0,3040.2,6.42301912]
[1765028643128,0.4627,3041.0,3040.2,7.7459762]
[1765028643359,0.1884,3040.9,3040.2,1.80805708]
[1765028643728,0.4627,3040.8,3040.2,1.80805708]
[1765028644141,0.4627,3040.8,3040.3,3.28914909]
[1765028644972,0.4627,3040.8,3040.2,0.82061894]
[1765028645179,1.61711067,3040.8,3040.1,6.42301912]
[1765028645669,0.4627,3040.7,3040.1,6.42301912]
[1765028645975,0.4627,3040.7,3040.2,3.28922145]
[1765028646848,0.4627,3040.7,3040.1,3.90145348]
[1765028649868,0.4627,3040.7,3040.1,7.19081896]
[1765028650074,0.4627,3040.7,3040.1,7.66171896]
[1765028650378,0.4627,3040.7,3040.1,10.2171726]
[1765028650572,0.72559411,3040.6,3040.1,3.28935444]
[1765028650773,1.36129816,3040.6,3040.1,3.28935444]
[1765028650982,1.83149816,3040.6,3040.1,3.76025444]
[1765028651486,1.10590405,3040.6,3040.1,3.85335444]
[1765028652472,0.4702,3040.6,3040.1,3.85335444]
[1765028654490,1.19579411,3040.6,3040.1,3.85335444]
[1765028654686,1.19579411,3040.6,3040.1,0.0931]
[1765028654687,1.62461067,3040.6,3040.1,0.0931]
[1765028654868,0.4702,3040.5,3040.1,0.0931]
[1765028655394,0.4702,3040.5,3040.1,3.38245238]
[1765028655893,0.23502048,3040.5,3040.1,0.4709]
[1765028656189,0.70522048,3040.5,3040.1,0.4709]
[1765028656492,0.70522048,3040.5,3040.0,3.28945431]
[1765028656658,0.70522048,3040.5,3040.0,3.76035431]
[1765028659267,0.4702,3040.5,3040.0,3.76035431]
[1765028662263,0.4702,3040.5,3040.0,3.28945431]
[1765028663978,0.4702,3040.5,3039.9,3.80854382]
[1765028664297,3.75914394,3040.5,3039.9,3.80854382]
[1765028664600,0.4702,3040.4,3039.9,3.80854382]
[1765028665192,0.4702,3040.4,3039.9,4.27944382]
[1765028665695,0.4702,3040.4,3039.9,3.80854382]
[1765028665878,0.4702,3040.4,3040.0,0.4709]
[1765028666605,1.15441067,3040.6,3040.0,3.7603139]
[1765028666791,1.62461067,3040.6,3040.0,3.7603139]
[1765028666989,2.30394748,3040.6,3040.0,3.7603139]
[1765028667170,0.4702,3040.5,3040.0,3.7603139]
[1765028667908,0.4702,3040.5,3040.0,3.2894139]
[1765028668196,0.4702,3040.5,3040.0,3.7603139]
[1765028668971,3.75915831,3040.5,3039.9,0.519]
[1765028669173,4.57938839,3040.5,3039.9,0.519]
[1765028669372,0.4702,3040.4,3039.9,0.519]
[1765028669666,0.4702,3040.4,3039.9,3.80851496]
[1765028669863,0.4702,3040.4,3039.9,4.27941496]
[1765028670067,0.4702,3040.4,3040.0,3.28947247]
[1765028670296,0.82023008,3040.5,3040.0,3.28947247]
[1765028670476,1.29043008,3040.5,3040.0,3.76037247]
[1765028670979,0.4702,3040.4,3040.0,3.76037247]
[1765028673575,0.82023008,3040.5,3040.0,3.76037247]
[1765028673874,1.29043008,3040.5,3040.0,3.76037247]
[1765028677012,0.82023008,3040.5,3040.0,3.76037247]
[1765028677309,0.4702,3040.4,3040.0,3.76037247]
[1765028678205,1.88000478,3040.6,3040.0,3.76037247]
[1765028678206,2.35020478,3040.6,3040.0,3.76037247]
[1765028678537,0.4702,3040.5,3040.0,3.76037247]
[1765028682284,0.4785,3040.1,3039.9,0.519]
[1765028684019,0.4785,3040.1,3039.9,3.80855025]
[1765028684701,0.4785,3040.1,3039.8,0.519]
[1765028686224,1.15441067,3040.4,3039.7,7.09857871]
[1765028686225,0.4855,3040.2,3039.7,7.09857871]
[1765028687022,0.4855,3040.2,3039.7,3.80878038]
[1765028687520,0.4785,3039.8,3039.6,3.28989797]
[1765028687720,0.4785,3039.8,3039.7,3.28979833]
[1765028688019,0.964,3039.8,3039.6,3.28987979]
[1765028688341,0.4785,3039.8,3039.7,3.28979833]
[1765028688940,0.964,3039.8,3039.7,3.28979833]
[1765028689217,0.4785,3039.8,3039.6,3.28990656]
[1765028692542,1.15441067,3040.4,3039.7,0.9548]
[1765028692745,1.67341067,3040.4,3039.9,0.4703]
[1765028692901,0.72540048,3040.3,3039.9,0.4703]
[1765028694128,0.72540048,3040.3,3040.0,3.28947368]
[1765028694129,0.23990048,3040.3,3040.0,3.28947368]
[1765028694432,1.0045,3040.5,3040.0,3.28947368]
[1765028694905,0.4855,3040.4,3040.0,3.28947368]
[1765028696230,0.4855,3040.4,3039.8,6.5793684]
[1765028697611,0.4855,3040.4,3039.9,0.4515]
[1765028700031,0.4855,3040.4,3040.0,3.28947368]
[1765028700236,0.4957,3040.4,3040.0,3.28947368]
[1765028701833,1.15441067,3040.5,3040.0,3.28947368]
[1765028702036,1.15441067,3040.5,3040.2,3.28925728]
[1765028702234,0.91399411,3040.9,3040.4,0.4742]
[1765028702421,1.65011067,3040.7,3040.2,3.28925728]
[1765028702808,0.4957,3040.6,3040.2,3.28925728]
[1765028703310,0.4957,3040.6,3040.2,6.57851456]
[1765028704323,0.4957,3040.6,3040.2,7.03001456]
[1765028704926,0.4957,3040.6,3040.2,3.28925728]
[1765028706321,0.98957227,3040.6,3040.1,3.28936548]
[1765028706860,1.65011067,3040.5,3040.1,3.28936548]
[1765028707215,0.4957,3040.4,3040.1,3.28936548]
[1765028711214,0.4957,3040.4,3040.1,6.57873096]
[1765028714965,0.4814,3040.2,3040.1,3.28936548]
[1765028715426,0.9743,3040.2,3040.1,3.28936548]
[1765028715947,0.9743,3040.2,3040.0,3.28945339]
[1765028716362,0.4929,3040.1,3040.0,3.28945339]
[1765028716564,0.9743,3040.1,3040.0,3.28945339]
[1765028716857,0.4814,3040.1,3040.0,3.28945339]
[1765028717163,0.4814,3040.1,3039.8,6.57936996]
[1765028717463,0.4814,3040.1,3039.8,7.45333802]
[1765028718065,0.4929,3040.3,3039.8,7.94023802]
[1765028719631,0.4929,3040.3,3039.9,0.4869]
[1765028720045,0.4929,3040.3,3039.8,7.45333802]
[1765028720270,1.15441067,3040.6,3039.8,7.45333802]
[1765028720567,1.64731067,3040.6,3039.9,0.4869]
[1765028720768,1.15441067,3040.8,3039.9,1.00047237]
[1765028720968,1.15441067,3040.8,3040.0,0.4869]
[1765028721140,0.4929,3040.7,3040.1,6.57873096]
[1765028721341,0.4929,3040.7,3040.1,6.67183096]
[1765028722577,0.1884,3040.9,3040.3,5.84341386]
[1765028722775,0.6813,3040.9,3040.3,5.84341386]
[1765028723140,0.6813,3040.9,3040.4,3.28904091]
[1765028723370,1.03617462,3040.9,3040.4,3.28904091]
[1765028723610,0.4929,3040.8,3040.4,3.28904091]
[1765028724260,0.4929,3040.8,3040.4,6.57808182]
[1765028724994,0.4929,3040.8,3040.4,7.06498182]
[1765028725507,0.4929,3040.8,3040.4,6.57808182]
[1765028725800,0.4929,3040.8,3040.4,3.28904091]
[1765028729907,0.4929,3040.8,3040.3,6.57829818]
[1765028730324,0.4929,3040.8,3040.3,7.41858741]
[1765028730474,0.4929,3040.8,3040.3,13.74712868]
[1765028730875,1.88200478,3041.2,3040.7,0.4851]
[1765028731195,2.2079355,3041.2,3040.7,0.4851]
[1765028731498,0.002,3041.2,3040.7,6.32674127]
[1765028731677,0.4949,3041.2,3040.7,7.5469054]
[1765028731887,0.4949,3041.2,3040.7,10.83552076]
[1765028732614,0.4949,3041.2,3040.7,10.34862076]
[1765028732788,0.4949,3041.2,3040.7,14.12423717]
[1765028733104,0.4949,3041.2,3040.7,10.34862076]
[1765028733886,0.4814,3040.8,3040.5,0.519]
[1765028734085,0.2152,3040.7,3040.5,0.519]
[1765028734820,0.4788,3040.6,3040.3,1.82767862]
[1765028735112,0.2178,3040.4,3040.0,3.84]
[1765028735314,0.4762,3040.2,3039.9,5.84164127]
[1765028735476,0.4762,3040.2,3039.9,6.4777054]
[1765028735984,0.4762,3040.2,3040.0,3.28946664]
[1765028736587,0.4929,3040.4,3040.0,3.28946664]
[1765028736797,0.4929,3040.4,3040.0,6.57894032]
[1765028737508,0.4929,3040.4,3040.0,3.28946664]
[1765028739208,0.4578,3040.8,3040.3,0.4674]
[1765028739413,0.4578,3040.7,3040.3,0.4674]
[1765028739612,0.4578,3040.7,3040.1,5.93474127]
[1765028740916,0.4578,3040.7,3040.2,3.28925728]
[1765028741810,0.4578,3040.7,3040.2,6.57851456]
[1765028743204,0.4578,3040.7,3040.2,7.03271456]
[1765028743717,0.4578,3040.7,3040.2,3.28925728]
[1765028745192,0.4578,3040.7,3040.2,6.57851456]
[1765028746222,0.4578,3040.7,3040.2,7.03271456]
[1765028746700,0.4578,3040.7,3040.3,5.84164127]
[1765028749307,0.4578,3040.7,3040.4,3.28904091]
[1765028750029,0.46,3040.5,3040.4,3.28904091]
[1765028751230,0.46,3040.5,3040.2,6.57850566]
[1765028751523,1.44533565,3040.8,3040.4,0.4674]
[1765028751926,1.39087969,3040.8,3040.4,0.4674]
[1765028752131,0.4578,3040.7,3040.4,0.4674]
[1765028753494,0.4578,3040.7,3040.5,3.28893274]
[1765028754327,2.33100406,3040.9,3040.5,3.28893274]
[1765028754524,0.4578,3040.8,3040.5,3.28893274]
[1765028755734,0.4578,3040.8,3040.4,3.2890393]
[1765028756831,0.72759411,3041.2,3040.7,0.4538]
[1765028757003,1.60611067,3041.1,3040.7,0.4538]
[1765028757399,0.4517,3041.0,3040.6,5.84164127]
[1765028758036,0.4517,3041.0,3040.6,3.28882457]
[1765028760533,1.15441067,3041.1,3040.6,3.28882457]
[1765028760737,0.4517,3041.0,3040.6,3.28882457]
[1765028762640,0.4517,3041.0,3040.5,3.28893274]
[1765028762810,0.4517,3041.0,3040.5,4.57971407]
[1765028763536,0.4569,3040.6,3040.5,3.28893274]
[1765028763736,0.4569,3040.6,3040.2,2.66082281]
[1765028763737,0.4569,3040.6,3040.2,0.519]
[1765028763940,0.4569,3040.3,3040.2,3.80825728]
[1765028766612,0.45,3040.5,3040.2,3.80825728]
[1765028767023,0.4569,3040.3,3040.2,3.80825728]
[1765028768941,0.9545,3040.3,3040.2,3.80825728]
[1765028769146,0.4569,3040.3,3040.1,3.28933836]
[1765028769347,0.9545,3040.3,3040.1,3.28933836]
[1765028769544,0.9545,3040.3,3040.1,3.28934124]
[1765028770351,0.4569,3040.3,3040.1,3.28934124]
[1765028770944,0.481,3040.2,3040.1,3.28934124]
[1765028771349,4.44313649,3040.7,3040.1,3.28934124]
[1765028771549,0.4976,3040.5,3040.1,3.28934124]
[1765028771939,0.4976,3040.5,3040.0,3.28947368]
[1765028773149,0.4976,3040.5,3040.0,7.04184736]
[1765028778661,0.4976,3040.5,3040.0,3.75237368]
[1765028778824,0.4976,3040.5,3040.0,3.28947368]
[1765028783056,0.481,3040.1,3039.9,3.28956035]
[1765028783257,0.2108,3040.0,3039.9,3.28956035]
[1765028783964,0.4976,3040.2,3039.9,3.28956035]
[1765028785336,1.15441067,3040.5,3039.9,5.84164127]
[1765028785532,1.65201067,3040.5,3039.9,5.84164127]
[1765028785832,0.4976,3040.4,3039.9,5.84164127]
[1765028787467,0.4976,3040.4,3039.9,9.13119724]
[1765028788873,3.88664773,3040.4,3039.9,5.84164127]
[1765028789170,4.35330246,3040.4,3039.8,3.28966279]
[1765028789375,0.4976,3040.3,3039.8,3.28966279]
[1765028790078,1.65201067,3040.3,3039.7,9.6504039]
[1765028790550,1.15441067,3040.3,3039.7,9.6504039]
[1765028790750,0.4976,3040.2,3039.7,9.6504039]
[1765028790960,0.481,3039.8,3039.4,3.29108253]
[1765028791380,0.481,3039.8,3039.5,3.29000865]
[1765028791381,0.4976,3039.7,3039.5,3.29000865]
[1765028791581,0.481,3039.5,3039.4,0.001]
[1765028792180,0.9786,3039.5,3039.4,0.001]
[1765028794363,1.40544003,3039.5,3039.4,0.001]
[1765028794777,0.9786,3039.5,3039.4,0.001]
[1765028800979,0.9656,3039.5,3039.4,0.001]
[1765028803171,1.0656,3039.5,3039.4,0.001]
[1765028803676,0.9656,3039.5,3039.4,0.001]
[1765028804266,4.3556148,3039.5,3039.4,0.001]
[1765028804467,5.31815827,3039.5,3039.4,0.001]
[1765028805593,5.31815827,3039.5,3039.4,0.101]
[1765028806459,5.41815827,3039.5,3039.4,0.101]
[1765028806887,6.04375238,3039.5,3039.4,0.101]
[1765028807083,5.94375238,3039.5,3039.4,0.101]
[1765028808467,6.17549145,3039.5,3039.4,0.101]
[1765028808878,6.07549145,3039.5,3039.4,0.101]
[1765028810176,6.58099545,3039.5,3039.4,0.101]
[1765028810375,6.48099545,3039.5,3039.4,0.101]
[1765028810598,6.58099545,3039.5,3039.4,0.101]
[1765028810797,6.68099545,3039.5,3039.4,0.101]
[1765028811900,6.48099545,3039.5,3039.4,0.101]
[1765028812203,6.58099545,3039.5,3039.4,0.101]
[1765028812587,6.68099545,3039.5,3039.4,0.101]
[1765028812977,12.52714045,3039.5,3039.4,0.101]
[1765028813298,17.12391445,3039.5,3039.4,0.101]
[1765028813881,17.02391445,3039.5,3039.4,0.101]
[1765028814076,9.46404745,3039.5,3039.4,0.101]
[1765028816708,6.99999545,3039.5,3039.4,0.101]
[1765028818291,7.09999545,3039.5,3039.4,0.101]
[1765028820778,6.99999545,3039.5,3039.4,0.101]
[1765028820980,5.59089145,3039.5,3039.4,0.101]
[1765028821233,6.10989145,3039.5,3039.4,0.101]
[1765028823596,4.66634798,3039.5,3039.4,1.0115]
[1765028823803,4.66634798,3039.5,3039.4,0.5554]
[1765028825520,4.14734798,3039.5,3039.4,0.5554]
[1765028828006,4.14734798,3039.5,3039.4,0.101]
[1765028831844,5.10804798,3039.5,3039.4,0.101]
[1765028832051,6.11517536,3039.5,3039.4,0.101]
[1765028834349,5.10804798,3039.5,3039.4,0.101]
[1765028835643,4.62234798,3039.5,3039.4,0.101]
[1765028836450,5.10804798,3039.5,3039.4,0.101]
[1765028838561,4.62234798,3039.5,3039.4,0.101]
[1765028842150,5.10804798,3039.5,3039.4,0.101]
[1765028842950,4.62234798,3039.5,3039.4,0.101]
[1765028843141,4.62234798,3039.5,3039.4,0.5926]
[1765028843142,4.14734798,3039.5,3039.4,0.5926]
[1765028843345,0.72559411,3039.5,3039.4,1.0527]
[1765028844350,0.72559411,3039.5,3039.4,0.5926]
[1765028844848,0.72559411,3039.5,3039.4,1.0527]
[1765028848898,0.5926,3039.7,3039.4,0.5926]
[1765028849060,1.15441067,3039.8,3039.6,0.4916]
[1765028849061,1.67341067,3039.8,3039.6,0.4916]
[1765028849393,2.39900478,3039.8,3039.7,0.4916]
[1765028849685,1.21129411,3039.7,3039.4,0.101]
[1765028849874,1.38301067,3039.5,3039.4,0.101]
[1765028850244,1.86871067,3039.5,3039.4,0.101]
[1765028851598,5.15872547,3039.5,3039.4,0.101]
[1765028852371,5.35872547,3039.5,3039.4,0.101]
[1765028852667,6.20932041,3039.5,3039.4,0.101]
[1765028852840,6.10932041,3039.5,3039.4,0.101]
[1765028853040,6.83491452,3039.5,3039.4,0.101]
[1765028855674,6.93491452,3039.5,3039.4,0.101]
[1765028855974,6.83491452,3039.5,3039.4,0.101]
[1765028857854,7.03491452,3039.5,3039.4,0.101]
[1765028858256,6.93491452,3039.5,3039.4,0.101]
[1765028858674,6.83491452,3039.5,3039.4,0.101]
[1765028859189,6.96665359,3039.5,3039.4,0.101]
[1765028860277,7.48565359,3039.5,3039.4,0.101]
[1765028860773,5.61694292,3039.5,3039.4,0.101]
[1765028863284,6.64564292,3039.5,3039.4,0.101]
[1765028866280,6.74564292,3039.5,3039.4,0.101]
[1765028866791,6.64564292,3039.5,3039.4,0.101]
[1765028869864,6.08704292,3039.5,3039.4,0.101]
[1765028870065,6.54564292,3039.5,3039.4,0.101]
[1765028870582,6.08704292,3039.5,3039.4,0.101]
[1765028870778,5.71694292,3039.5,3039.4,0.5705]
[1765028871391,5.61694292,3039.5,3039.4,0.5705]
[1765028871581,5.61694292,3039.5,3039.4,0.101]
[1765028872394,5.61694292,3039.5,3039.4,0.5705]
[1765028874461,6.66964292,3039.5,3039.4,0.101]
[1765028874669,6.76964292,3039.5,3039.4,0.101]
[1765028880391,7.17514692,3039.5,3039.4,0.101]
[1765028880986,6.69074692,3039.5,3039.4,0.101]
[1765028881397,7.17514692,3039.5,3039.4,0.101]
[1765028887216,7.07514692,3039.5,3039.4,0.101]
[1765028887509,7.17514692,3039.5,3039.4,0.101]
[1765028894134,6.97514692,3039.5,3039.4,0.101]
[1765028894502,7.07514692,3039.5,3039.4,0.101]
[1765028894711,7.17514692,3039.5,3039.4,0.101]
[1765028897638,7.07514692,3039.5,3039.4,0.101]
[1765028898638,7.17514692,3039.5,3039.4,0.101]
[1765028899033,7.07514692,3039.5,3039.4,0.101]
[1765028899235,7.17514692,3039.5,3039.4,0.101]
[1765028909057,18.28027492,3039.5,3039.4,0.101]
[1765028911960,18.06960692,3039.5,3039.4,0.101]
[1765028914368,23.92116815,3039.5,3039.4,0.101]
[1765028915065,23.50504515,3039.5,3039.4,0.101]
[1765028917563,21.99527815,3039.5,3039.4,0.101]
[1765028921085,36.08047115,3039.5,3039.4,0.101]
[1765028922066,39.60760015,3039.5,3039.4,0.101]
[1765028922708,39.39289515,3039.5,3039.4,0.101]
[1765028923090,39.35435615,3039.5,3039.4,0.101]
[1765028923896,16.82449915,3039.5,3039.4,0.101]
[1765028924057,24.72525515,3039.5,3039.4,0.101]
[1765028924365,22.01351515,3039.5,3039.4,0.101]
[1765028924564,16.15366715,3039.5,3039.4,0.101]
[1765028925179,19.76867415,3039.5,3039.4,0.101]
[1765028925382,19.28299515,3039.5,3039.4,0.101]
[1765028925754,14.62007515,3039.5,3039.4,0.101]
[1765028925951,15.68130815,3039.5,3039.4,0.101]
[1765028926151,19.07033415,3039.5,3039.4,0.101]
[1765028926595,19.52513415,3039.5,3039.4,0.101]
[1765028927199,12.99710815,3039.5,3039.4,0.101]
[1765028927398,24.05061015,3039.5,3039.4,0.101]
[1765028928208,12.99710815,3039.5,3039.4,0.101]
[1765028928389,24.04742015,3039.5,3039.4,0.101]
[1765028929298,24.69820815,3039.5,3039.4,0.101]
[1765028929514,24.24340815,3039.5,3039.4,0.101]
[1765028929682,24.69820815,3039.5,3039.4,0.101]
[1765028930308,24.56754015,3039.5,3039.4,0.101]
[1765028931382,24.60840415,3039.5,3039.4,0.101]
[1765028932398,24.60114215,3039.5,3039.4,0.101]
[1765028933306,24.63242715,3039.5,3039.4,0.101]
[1765028934289,12.99710815,3039.5,3039.4,0.101]
[1765028934586,24.61099915,3039.5,3039.4,0.101]
[1765028935513,23.53382115,3039.5,3039.4,0.101]
[1765028935814,6.22244692,3039.5,3039.4,0.5811]
[1765028936110,5.70344692,3039.5,3039.4,0.5811]
[1765028936309,5.27185198,3039.5,3039.4,1.0719]
[1765028937123,5.27185198,3039.5,3039.4,0.5811]
[1765028939207,5.27185198,3039.5,3039.4,1.0719]
[1765028939415,3.92725787,3039.5,3039.4,1.0719]
[1765028939591,5.17185198,3039.5,3039.4,1.0719]
[1765028940904,5.17185198,3039.5,3039.4,0.5811]
[1765028942819,5.27185198,3039.5,3039.4,0.5811]
[1765028946194,6.5724583,3039.5,3039.4,0.5811]
[1765028947328,13.40351953,3039.5,3039.4,0.101]
[1765028952316,12.88451953,3039.5,3039.4,0.101]
[1765028952518,11.90501953,3039.5,3039.4,0.101]
[1765028952741,12.42401953,3039.5,3039.4,0.5826]
[1765028952940,12.42401953,3039.5,3039.4,0.101]
[1765028953157,6.5724583,3039.5,3039.4,0.5826]
[1765028959480,6.5724583,3039.5,3039.4,0.101]
[1765028962692,5.9534583,3039.5,3039.4,0.5826]
[1765028962851,6.4724583,3039.5,3039.4,0.5826]
[1765028963584,6.5724583,3039.5,3039.4,0.5826]
[1765028963976,6.4724583,3039.5,3039.4,0.5826]
[1765028964700,6.4724583,3039.5,3039.4,0.101]
[1765028964866,6.4724583,3039.5,3039.4,0.5826]
[1765028965768,6.5724583,3039.5,3039.4,0.5826]
[1765028967872,7.0430583,3039.5,3039.4,0.101]
[1765028968099,13.37341953,3039.5,3039.4,0.101]
[1765028972739,12.89461953,3039.5,3039.4,0.101]
[1765028973592,7.0430583,3039.5,3039.4,0.101]
[1765028973838,6.5724583,3039.5,3039.4,0.101]
[1765028974286,7.0430583,3039.5,3039.4,0.101]
[1765028976530,12.42259034,3039.5,3039.4,0.101]
[1765028977836,6.4724583,3039.5,3039.4,0.5826]
[1765028978340,6.5724583,3039.5,3039.4,0.5826]
[1765028979472,6.4724583,3039.5,3039.4,0.5826]
[1765028979784,3.82725787,3039.5,3039.4,0.5826]
[1765028980079,5.07185198,3039.5,3039.4,1.0697]
[1765028980870,5.17185198,3039.5,3039.4,1.0697]
[1765028985760,5.17185198,3039.5,3039.4,0.5826]
[1765028986260,11.59948402,3039.5,3039.4,0.101]
[1765028986484,13.61181347,3039.5,3039.4,0.101]
[1765028986664,13.14611347,3039.5,3039.4,0.101]
[1765028986990,13.61181347,3039.5,3039.4,0.101]
[1765028987800,44.97278951,3039.5,3039.4,0.101]
[1765028988004,39.12265747,3039.5,3039.4,0.101]
[1765028988808,26.55168847,3039.5,3039.4,0.101]
[1765028989100,15.45395647,3039.5,3039.4,0.101]
[1765028989884,15.93145647,3039.5,3039.4,0.101]
[1765028991062,16.39715647,3039.5,3039.4,0.101]
[1765028991759,13.61181347,3039.5,3039.4,0.101]
[1765028991967,17.20495447,3039.5,3039.4,0.101]
[1765028992461,15.95526147,3039.5,3039.4,0.101]